[Event "12th WLC Weekend 2022"]
[Site "Eindhoven"]
[Date "2022.05.15"]
[Round "6.19"]
[White "Weijers, Ralf"]
[Black "Faber, Hugo"]
[Result "0-1"]
[ECO "B40"]
[WhiteElo "1857"]
[BlackElo "2076"]
[Annotator "TA"]
[PlyCount "66"]
[EventDate "2022.05.13"]
[EventType "swiss"]
[EventCountry "NED"]
[SourceTitle "playchess.com"]
[Source "ChessBase"]
[SourceQuality "1"]
[TimeControl "5400+30"]

{[%evp 9,66,-4,35,43,38,18,28,-48,-69,-42,-61,-146,-135,-133,0,-1,13,-29,-28,-109,-8,-69,-28,-65,-58,-65,-45,-120,-126,-137,-140,-278,-260,-374,-331,-563,-541,-583,-510,-582,-592,-766,-608,-608,-608,-608,-597,-978,-659,-725,-538,-861,-851,-800,-816,-1177,-1138,-29962,-6752]} 1. e4 {[%emt 0:00:02]} e6 {[%emt 0:02:00]} 2. Nf3 {[%emt 0:00:04]} c5 {[%emt 0:01:27]} 3. b4 {[%emt 0:02:07]} cxb4 {[%emt 0:02:38]} 4. d4 {[%emt 0:00:06]} d6 {[%emt 0:04:58]} 5. Bd3 {[%emt 0:05:10]} Nd7 {[%emt 0:04:13] [#]} 6. a3 $146 {[%emt 0:01:31] B40: Sicilian: 2...e6, Unusual lines.} ({Predecessor:} 6. O-O Ngf6 7. a3 bxa3 8. c4 e5 9. Bxa3 b6 10. Qa4 Qc7 11. Nc3 a6 12. Nd5 Nxd5 13. exd5 {½-½ (40) Neuberg,S-Puth,D Trier 1991}) 6... bxa3 {[%emt 0:01:01]} 7. Bxa3 {[%emt 0:00:45]} Ngf6 {[%emt 0:02:18]} 8. e5 {[%emt 0:03:10]} (8. O-O $11) 8... dxe5 $15 {[%emt 0:04:26] [#] aiming for ...Bxa3.} 9. Bxf8 {[%emt 0:03:53]} Kxf8 {[%emt 0:01:58]} 10. Nxe5 {[%emt 0:05:12]} (10. dxe5 $15 Nxe5 11. Nxe5) 10... Nxe5 $17 {[%emt 0:01:25]} 11. dxe5 {[%emt 0:00:01]} Nd5 {[%emt 0:06:52]} (11... Qd4 $17 12. Nd2 Qxe5+ 13. Be2 Bd7) 12. O-O $11 {[%emt 0:08:55]} g6 {[%emt 0:07:54]} 13. Qf3 {[%emt 0:06:39]} Qg5 {[%emt 0:04:23]} 14. Be4 {[%emt 0:18:25]} (14. Re1 $11 {remains equal.}) 14... Kg7 {[%emt 0:04:24]} (14... Qxe5 $17 15. Na3 Kg7) 15. Bxd5 {[%emt 0:05:39]} (15. Nc3 $11) 15... exd5 {[%emt 0:00:13]} 16. Qxd5 {[%emt 0:00:01]} Rd8 $36 {[%emt 0:00:52][%mdl 2048] Black fights for an advantage.} 17. Qe4 {[%emt 0:07:05]} a6 {[%emt 0:02:38]} 18. f4 {[%emt 0:04:22] Black converts the advantage convincingly.} (18. Nc3 $15) 18... Qe7 $17 {[%emt 0:00:29]} 19. Qe3 {[%emt 0:05:38]} Bf5 {[%emt 0:01:07]} 20. Na3 {[%emt 0:05:09]} (20. Nd2 $17) 20... Rac8 $19 {[%emt 0:00:52]} 21. Rf2 {[%emt 0:04:41]} (21. h3 $142) 21... b5 {[%emt 0:04:09][%cal Bb7b5,Bb5b4,Bb4b3,Bb3b2][%mdl 32]} 22. Qf3 $2 {[%emt 0:01:41]} (22. Qe2 {keeps fighting.}) 22... h5 {[%emt 0:02:53][%cal Bh7h5,Bh5h4][%mdl 32]} 23. h3 {[%emt 0:00:02]} h4 {[%emt 0:00:11] Hoping for ...b4.} 24. Qb3 {[%emt 0:01:15]} Qc5 {[%emt 0:01:57] [#] Prevents c4. Strongly threatening ...Rd2.} 25. Raf1 {[%emt 0:02:42]} b4 {[%emt 0:01:45]} 26. Nb1 {[%emt 0:00:53]} Bxc2 {[%emt 0:01:08]} 27. Qb2 {[%emt 0:00:24]} Qd4 {[%emt 0:05:33]} 28. Qa2 {[%emt 0:00:48]} Rc6 {[%emt 0:07:17]} 29. Nd2 {[%emt 0:00:32]} Qc3 {[%emt 0:00:53]} 30. Nf3 {[%emt 0:00:42]} b3 {[%emt 0:00:27]} 31. Qa3 {[%emt 0:01:07]} b2 {[%emt 0:00:44]} 32. Qe7 {[%emt 0:00:01]} Rd1 {[%emt 0:07:11]} 33. Ng5 {[%emt 0:02:51]} Rxf1+ {[%emt 0:02:14] Weighted Error Value: White=1.19/Black=0.44} 0-1

[Event "12th WLC Weekend 2022"]
[Site "Eindhoven"]
[Date "2022.05.15"]
[Round "6.20"]
[White "Van de Lagemaat, Arend"]
[Black "Klapwijk, Leo"]
[Result "1/2-1/2"]
[ECO "D78"]
[WhiteElo "1995"]
[BlackElo "1828"]
[Annotator "TA"]
[PlyCount "102"]
[EventDate "2022.05.13"]
[EventType "swiss"]
[EventCountry "NED"]
[SourceTitle "playchess.com"]
[Source "ChessBase"]
[SourceQuality "1"]
[TimeControl "5400+30"]

{[%evp 14,102,28,30,47,31,28,5,23,10,25,-8,44,2,51,-6,47,45,57,36,71,0,24,8,6,0,0,6,12,23,0,0,45,22,62,47,74,87,71,62,72,85,144,0,0,-40,-40,-40,-40,-40,-47,-40,-37,-44,-22,-41,-44,-44,-40,-172,-176,-146,-202,-175,-18,-18,-18,-18,0,0,0,-10,0,0,0,0,0,0,0,0,0,0,0,0,0,0,0,0,0,0,0]} 1. d4 {[%emt 0:00:03]} Nf6 {[%emt 0:02:12]} 2. Nf3 {[%emt 0:00:06]} c6 {[%emt 0:01:36]} 3. g3 {[%emt 0:00:14]} d5 {[%emt 0:02:05]} 4. Bg2 {[%emt 0:00:06]} g6 {[%emt 0:03:06]} 5. O-O {[%emt 0:00:40]} Bg7 {[%emt 0:00:09]} 6. c4 {[%emt 0:00:45]} O-O {[%emt 0:01:49]} 7. b3 {[%emt 0:00:07]} Ne4 {[%emt 0:07:53]} 8. Bb2 {[%emt 0:00:12]} Qb6 {[%emt 0:01:10] 8...a5 is the recent fashion. D78: Fianchetto Grünfeld: 6 0-0 c6.} 9. Qc1 {[%emt 0:05:48]} Be6 {[%emt 0:04:46] [#]} 10. Na3 $146 {[%emt 0:06:53]} ({Predecessor:} 10. c5 Qc7 11. Nc3 Bf5 12. Rd1 Re8 13. Nh4 Nxc3 14. Bxc3 Bc8 15. b4 Nd7 16. Nf3 e5 17. Nxe5 Nxe5 18. dxe5 Bxe5 19. e3 Bf5 20. Bxe5 {½-½ (20) Padevsky,N (2425)-Pichler,J (2425) Gelsenkirchen 1991}) 10... Nd7 {[%emt 0:01:24]} 11. e3 {[%emt 0:04:21]} Rac8 {[%emt 0:01:02]} 12. Ne1 {[%emt 0:04:12]} f5 {[%emt 0:02:34]} (12... c5 $11) 13. Nd3 {[%emt 0:02:10]} a6 {[%emt 0:01:21]} (13... c5 $11 {might be stronger.}) 14. Kh1 {[%emt 0:00:47]} (14. c5 $14 Qc7 15. f3) 14... Qd8 {[%emt 0:04:26]} ({Black should play} 14... c5 $11) 15. f3 $14 {[%emt 0:02:25]} Nef6 {[%emt 0:01:07]} 16. Qd2 {[%emt 0:01:55]} b5 {[%emt 0:06:34]} 17. Rfc1 {[%emt 0:01:59]} (17. cxb5 $16 cxb5 18. Bc3) 17... bxc4 {[%emt 0:02:37]} 18. bxc4 {[%emt 0:00:22]} c5 {[%emt 0:03:30]} 19. Nf4 {[%emt 0:06:42]} Bf7 {[%emt 0:00:58]} 20. cxd5 {[%emt 0:00:44]} Nxd5 {[%emt 0:01:13]} 21. Nxd5 {[%emt 0:01:27]} Bxd5 {[%emt 0:00:21]} 22. e4 {[%emt 0:02:18]} fxe4 {[%emt 0:06:17]} 23. fxe4 {[%emt 0:00:08]} Ba8 {[%emt 0:00:55]} 24. d5 {[%emt 0:00:37]} Ne5 {[%emt 0:03:15][%cal Oe7e6]} 25. Nc4 {[%emt 0:01:59]} Nxc4 {[%emt 0:03:06]} 26. Rxc4 {[%emt 0:00:07] Threatens to win with Bh3.} Bxb2 {[%emt 0:05:11]} 27. Qxb2 {[%emt 0:00:07]} e6 {[%emt 0:01:36] [#]} (27... Qd6 $142) 28. Qe5 {[%emt 0:10:46] 0x0.001a2c22d68adp-1022s more active pieces.} ({Don't do} 28. dxe6 $6 Qd6 $14) (28. Bh3 $1 $16 {[%cal Rh3e6]} Re8 29. Rd1 (29. dxe6 Qd3 $11) (29. Bxe6+ Rxe6 30. dxe6 Qd3 $11)) 28... exd5 $11 {[%emt 0:01:38]} 29. exd5 {[%emt 0:00:44]} Re8 {[%emt 0:02:04]} 30. Qc3 {[%emt 0:02:46]} Bxd5 {[%emt 0:00:57]} 31. Rxc5 {[%emt 0:00:45]} Bxg2+ {[%emt 0:04:55]} 32. Kxg2 {[%emt 0:00:11]} Rxc5 {[%emt 0:03:24]} 33. Qxc5 $15 {[%emt 0:00:20][%mdl 4096] Endgame KQR-KQR} Qd2+ {[%emt 0:01:10]} 34. Kg1 {[%emt 0:06:32]} Re2 {[%emt 0:05:46]} 35. Qc8+ $1 {[%emt 0:00:59]} Kg7 {[%emt 0:00:36]} 36. Qc7+ {[%emt 0:01:17]} (36. Qb7+ $1 $15 Kh6 37. Rf1) 36... Kh6 $19 {[%emt 0:00:08] [#] ( -> ...Qd4+)} 37. Qf4+ {[%emt 0:01:02]} Qxf4 {[%emt 0:00:13]} 38. gxf4 $17 {[%emt 0:00:02] KR-KR} Kg7 $2 {[%emt 0:00:34]} (38... a5 $19 {...a4 is the strong threat.} 39. a4 Re4) 39. Rb1 $11 {[%emt 0:01:05] The position is equal.} Rxa2 {[%emt 0:00:47]} 40. Rb7+ {[%emt 0:00:13]} Kf6 {[%emt 0:01:22] And now ...h5 would win.} 41. Rxh7 {[%emt 0:00:40]} a5 {[%emt 0:01:39][%cal Ba6a5,Ba5a4,Ba4a3,Ba3a2][%mdl 32] Strongly threatening ...a4.} 42. Ra7 {[%emt 0:00:46]} g5 {[%emt 0:00:40]} 43. fxg5+ {[%emt 0:00:10]} Kxg5 {[%emt 0:00:05]} 44. Kf1 {[%emt 0:03:00]} Kf4 {[%emt 0:01:21]} 45. h4 {[%emt 0:03:06]} a4 {[%emt 0:00:15]} 46. h5 {[%emt 0:01:09]} Ra1+ {[%emt 0:02:19]} 47. Kg2 {[%emt 0:00:32]} Kg5 {[%emt 0:00:24]} 48. Ra5+ {[%emt 0:00:15]} Kh6 {[%emt 0:00:24]} 49. Kh2 {[%emt 0:00:11]} a3 {[%emt 0:00:25]} 50. Kg2 {[%emt 0:00:04]} a2 {[%emt 0:00:51]} 51. Kh2 $1 {[%emt 0:00:10]} Rb1 {[%emt 0:00:28] Weighted Error Value: White=0.23 (precise) /Black=0.21 (precise)} 1/2-1/2

[Event "12th WLC Weekend 2022"]
[Site "Eindhoven"]
[Date "2022.05.15"]
[Round "6.21"]
[White "Dekker, Marvin"]
[Black "Van Kuijk, Vadim"]
[Result "0-1"]
[ECO "A00"]
[WhiteElo "2014"]
[BlackElo "1898"]
[Annotator "TA"]
[PlyCount "45"]
[EventDate "2022.05.13"]
[EventType "swiss"]
[EventCountry "NED"]
[SourceTitle "playchess.com"]
[Source "ChessBase"]
[SourceQuality "1"]
[TimeControl "5400+30"]

{[%evp 9,45,-29,0,0,0,-1,0,-15,4,-25,-37,-22,-37,-28,-14,-10,0,0,8,0,7,0,0,0,44,0,29,7,7,0,91,106,104,-43,-37,-1866,1254,-203]} 1. Nh3 {[%emt 0:02:56]} d5 {[%emt 0:00:51]} 2. g3 {[%emt 0:00:12]} c5 {[%emt 0:00:28]} 3. Bg2 {[%emt 0:00:11]} Nf6 {[%emt 0:00:16]} 4. O-O {[%emt 0:00:21]} Nc6 {[%emt 0:01:28]} 5. c4 {[%emt 0:00:09]} e6 {[%emt 0:01:52][%cal Be7e6,Be6d5,Bd5d4][%mdl 32]} 6. cxd5 {[%emt 0:00:05] A00: Irregular Openings.} exd5 {[%emt 0:00:16]} 7. d3 {[%emt 0:00:06]} Be7 {[%emt 0:02:14]} 8. Bg5 {[%emt 0:00:12] The position is equal.} O-O {[%emt 0:00:58]} 9. Nc3 {[%emt 0:00:05]} d4 {[%emt 0:02:48]} 10. Bxf6 {[%emt 0:00:16]} Bxf6 {[%emt 0:00:43]} 11. Ne4 {[%emt 0:01:02] [#]} b6 $146 {[%emt 0:03:01]} ({Predecessor:} 11... Be7 12. Rc1 b6 13. Nf4 Bb7 14. Nd5 Rc8 15. e3 Re8 16. Nxe7+ Qxe7 17. Qh5 Nb4 {0-1 (27) Dekker,M (2130)-Ismagambetov,A (2527) Dresden 2008}) 12. Nf4 {[%emt 0:13:32]} Bb7 {[%emt 0:09:17]} 13. Qa4 {[%emt 0:07:30][%cal Ob2b4]} Rc8 {[%emt 0:02:29]} 14. b4 {[%emt 0:17:12]} cxb4 {[%emt 0:11:03]} 15. Nxf6+ {[%emt 0:05:24]} Qxf6 {[%emt 0:00:54]} 16. Rfc1 {[%emt 0:02:38]} a5 {[%emt 0:11:31]} 17. Rc2 {[%emt 0:03:40] Rac1 is the strong threat.} (17. a3 {is interesting.} Qe7 18. Nd5 Qxe2 19. Nxb6 Ne5 20. Nxc8 Bxg2 21. Kxg2 Nxd3 22. Rc2) 17... Nd8 {[%emt 0:06:54][%cal Ob6b5,Bc6d8,Bd8b7,Bb7c5][%mdl 32] Hoping for ...b5!} (17... g5 $5 {[%cal Rg5f4]}) 18. Rxc8 {[%emt 0:04:52]} Bxc8 {[%emt 0:01:10]} 19. Rc1 {[%emt 0:04:26]} Bb7 {[%emt 0:02:36] [#]} (19... Be6 $11) 20. Bxb7 $1 $16 {[%emt 0:01:14]} Nxb7 {[%emt 0:00:18] [#]} 21. Qc6 {[%emt 0:07:29]} (21. Rc6 $1 $16 {[%cal Rc6f6]} Nc5 22. Qb5) 21... Nc5 $15 {[%emt 0:07:56]} 22. Qd6 {[%emt 0:08:21][%mdl 8192]} Qe6 $4 {[%mdl 8192]} (22... Qxd6 $19 23. Rc2 Re8) 23. Qxe6 $4 {[%emt 0:00:30][%mdl 8192] Weighted Error Value: White=0.48/Black=0.25 (precise)} (23. Nxe6 $18 {is the narrow road to win.} Nxe6 24. Qxb6) 0-1

[Event "12th WLC Weekend 2022"]
[Site "Eindhoven"]
[Date "2022.05.15"]
[Round "6.22"]
[White "Bakija, Alan"]
[Black "Auwens, Michel"]
[Result "1/2-1/2"]
[ECO "E69"]
[WhiteElo "1868"]
[BlackElo "1791"]
[Annotator "NA RC COMBH"]
[PlyCount "89"]
[EventDate "2022.05.13"]
[EventType "swiss"]
[EventCountry "NED"]
[SourceTitle "playchess.com"]
[Source "ChessBase"]
[SourceQuality "1"]
[TimeControl "5400+30"]

1. Nf3 {[%emt 0:00:02]} Nf6 {[%emt 0:01:52]} 2. g3 {[%emt 0:00:15]} c6 {[%emt 0:00:21]} 3. Bg2 {[%emt 0:00:08]} d6 {[%emt 0:00:04]} 4. d4 {[%emt 0:00:06]} g6 {[%emt 0:00:07]} 5. c4 {[%emt 0:00:07]} Bg7 {[%emt 0:00:17]} 6. Nc3 {[%emt 0:00:06]} Nbd7 {[%emt 0:00:30]} 7. O-O {[%emt 0:00:09]} O-O {[%emt 0:00:03]} 8. e4 {[%emt 0:00:03]} e5 {[%emt 0:00:20]} 9. h3 {[%emt 0:00:05]} Qc7 {[%emt 0:01:43]} 10. Be3 {[%emt 0:00:10]} Rd8 {[%emt 0:00:30]} 11. Qc2 {[%emt 0:00:25]} Nf8 {[%emt 0:01:08]} 12. Rad1 {[%emt 0:16:53]} exd4 {[%emt 0:04:13]} 13. Nxd4 {[%emt 0:00:51]} Ne6 {[%emt 0:00:09]} 14. f4 {[%emt 0:00:29]} Nh5 {[%emt 0:12:25]} 15. Kh2 {[%emt 0:00:27]} Nxd4 {[%emt 0:00:23]} 16. Bxd4 {[%emt 0:00:06]} f5 {[%emt 0:00:24]} 17. Bxg7 {[%emt 0:02:37]} Nxg7 {[%emt 0:01:22]} 18. Rfe1 {[%emt 0:01:31]} Be6 {[%emt 0:01:47]} 19. b3 {[%emt 0:00:18]} Qf7 {[%emt 0:02:21]} 20. e5 {[%emt 0:04:02]} dxe5 {[%emt 0:01:54]} 21. Rxe5 {[%emt 0:00:09]} Rxd1 {[%emt 0:00:54]} 22. Qxd1 {[%emt 0:00:09]} Qd7 {[%emt 0:04:49]} 23. Qxd7 {[%emt 0:02:47]} Bxd7 {[%emt 0:00:05]} 24. Ra5 {[%emt 0:01:17]} a6 {[%emt 0:02:10]} 25. Re5 {[%emt 0:01:06]} Re8 {[%emt 0:00:44]} 26. Rxe8+ {[%emt 0:00:20]} Nxe8 {[%emt 0:00:02]} 27. Na4 {[%emt 0:00:39]} Kf7 {[%emt 0:00:58]} 28. Nc5 {[%emt 0:00:35]} Bc8 {[%emt 0:00:13]} 29. h4 {[%emt 0:02:01]} Ke7 {[%emt 0:00:54]} 30. Bf3 {[%emt 0:02:18]} Nc7 {[%emt 0:01:35]} 31. h5 {[%emt 0:01:00]} Ne6 {[%emt 0:06:55]} 32. hxg6 {[%emt 0:00:14]} hxg6 {[%emt 0:00:01]} 33. Nd3 {[%emt 0:00:31]} Nd4 {[%emt 0:00:16]} 34. Ne5 {[%emt 0:01:05]} Kf6 {[%emt 0:00:19]} 35. Bd1 {[%emt 0:00:50]} g5 {[%emt 0:04:46]} 36. Kg2 {[%emt 0:01:45]} gxf4 {[%emt 0:02:05]} 37. gxf4 {[%emt 0:00:08]} Ne6 {[%emt 0:01:42]} 38. Kf3 {[%emt 0:00:29]} c5 {[%emt 0:07:29]} 39. Ke3 {[%emt 0:00:29]} b5 {[%emt 0:01:19]} 40. cxb5 {[%emt 0:11:57]} axb5 {[%emt 0:03:17]} 41. a3 {[%emt 0:04:44]} Bb7 {[%emt 0:04:03]} 42. b4 {[%emt 0:02:52]} cxb4 {[%emt 0:01:12]} 43. axb4 {[%emt 0:00:08]} Nc7 {[%emt 0:00:26]} 44. Bb3 {[%emt 0:03:02]} Bd5 {[%emt 0:00:36]} 45. Bc2 {[%emt 0:05:58]} 1/2-1/2

[Event "12th WLC Weekend 2022"]
[Site "Eindhoven"]
[Date "2022.05.15"]
[Round "6.23"]
[White "Oskam, Julian"]
[Black "Simons, Rudy"]
[Result "1/2-1/2"]
[ECO "A37"]
[WhiteElo "1627"]
[BlackElo "2046"]
[Annotator "TA"]
[PlyCount "224"]
[EventDate "2022.05.13"]
[EventType "swiss"]
[EventCountry "NED"]
[SourceTitle "playchess.com"]
[Source "ChessBase"]
[SourceQuality "1"]
[TimeControl "5400+30"]

{[%evp 16,224,0,0,76,0,-4,-30,60,49,50,6,41,46,44,24,58,34,25,35,34,16,40,39,52,42,81,52,91,45,73,12,14,5,16,11,18,-20,-9,-121,-131,-109,-48,-363,-360,-663,-659,-1607,-575,-558,-552,-474,-351,-304,-298,-375,-303,-307,-231,-538,-528,-800,-790,-697,-756,-619,-482,-727,-648,-1485,-1399,-2589,-4342,-10225,-6422,-29969,-29971,-29966,-29954,-9942,-1594,-6436,-2684,-5469,-1627,-29947,-29956,-2353,-3523,-29958,-29940,-12790,-5401,-5385,-240,-240,-8,-8,-8,-8,-8,-8,-8,-8,-8,-8,-8,-8,-8,-8,-8,-8,-8,-8,0,-8,0,-8,-8,-8,-8,-8,-8,-8,-8,-8,-8,-8,-8,-8,-8,-8,-8,-8,-8,-8,-8,-8,-8,-8,-8,-8,-8,-8,-8,-8,-8,-8,0,-8,-8,-8,-8,-8,-8,-8,-8,-8,-8,-8,-8,-8,-8,-8,-8,-8,-8,-8,-8,-8,-8,-8,-8,-8,-8,-8,0,-8,-8,-8,-8,-8,-8,-8,-8,-8,-8,-8,-8,-8,0,0,0,0,0,-8,0,0,0,0,0,-8,-8,-8,-8,-8,-8,-8,0,-8,-8]} 1. c4 {[%emt 0:00:24]} c5 {[%emt 0:00:14]} 2. g3 {[%emt 0:00:11]} g6 {[%emt 0:00:11]} 3. Bg2 {[%emt 0:00:09]} Bg7 {[%emt 0:00:04]} 4. Nf3 {[%emt 0:00:26]} Nc6 {[%emt 0:00:05]} 5. Nc3 {[%emt 0:00:32]} e6 {[%emt 0:00:54]} 6. O-O {[%emt 0:01:52]} Nge7 {[%emt 0:00:39]} 7. d3 {[%emt 0:08:39]} d5 {[%emt 0:00:17]} 8. cxd5 {[%emt 0:00:45]} exd5 {[%emt 0:00:06]} 9. Bf4 {[%emt 0:06:17]} a6 {[%emt 0:00:22] A37: Symmetrical English vs ...g6: 4 Bg2 Bg7 5 Nf3.} (9... O-O $11 {remains equal.}) 10. Qc1 {[%emt 0:02:30]} (10. Na4 $16) 10... O-O $11 {[%emt 0:00:33]} 11. Bh6 {[%emt 0:00:37] [#]} Nf5 $146 {[%emt 0:01:14]} (11... d4 $11 12. Ne4 b6) ({Predecessor:} 11... b6 12. Bxg7 Kxg7 13. Qf4 f6 14. Rad1 Be6 15. b3 d4 16. Na4 Nd5 17. Qc1 Rc8 {1-0 (80) Oergel,U (1732)-Peleikis,H (1923) Binz 2014}) 12. Bxg7 $14 {[%emt 0:00:14]} Kxg7 {[%emt 0:00:19]} 13. e3 {[%emt 0:04:43]} (13. Na4 {looks sharper.} Nfd4 14. Nxd4 Nxd4 15. Qc3) 13... b6 {[%emt 0:06:32]} 14. Ne2 {[%emt 0:09:55]} Bb7 {[%emt 0:02:45]} 15. d4 {[%emt 0:01:55]} c4 {[%emt 0:00:46]} 16. b3 {[%emt 0:07:23]} cxb3 {[%emt 0:01:53]} 17. axb3 {[%emt 0:00:08]} Rc8 {[%emt 0:00:07][%cal Oc6d4]} 18. Qb2 {[%emt 0:01:06]} a5 {[%emt 0:01:34]} 19. Bh3 {[%emt 0:01:12]} Qf6 $1 {[%emt 0:02:42]} 20. Ne5 {[%emt 0:05:31]} Rfd8 {[%emt 0:01:06] Against Nd7} 21. Nxc6 {[%emt 0:01:01]} (21. Rac1 {feels hotter.} Nb4 22. Nf4 Kg8 23. Rfe1) 21... Rxc6 {[%emt 0:00:25]} 22. Rfc1 {[%emt 0:03:48]} (22. Nf4 $16) 22... g5 {[%emt 0:04:29]} 23. Qb1 {[%emt 0:05:17]} ({White should play} 23. b4 $16) 23... Rxc1+ $11 {[%emt 0:00:41]} 24. Nxc1 {[%emt 0:00:10]} Nd6 {[%emt 0:00:11]} 25. Nd3 {[%emt 0:02:53]} Bc8 {[%emt 0:09:38]} 26. Bxc8 {[%emt 0:02:00]} Rxc8 {[%emt 0:00:02]} 27. Qb2 {[%emt 0:05:53]} (27. b4 $11) 27... Qf5 $1 $17 {[%emt 0:04:29]} 28. Ne1 {[%emt 0:07:42] [#]} Ne4 {[%emt 0:02:21]} (28... g4 $1 $17 {aiming for ...Ne4.} 29. Rc1 Rxc1 30. Qxc1 b5) 29. Kg2 $2 {[%emt 0:01:45][%mdl 8192]} ({White must play} 29. f3 $15 Nf6 30. g4) 29... g4 $19 {[%emt 0:01:41]} 30. Rb1 $2 {[%emt 0:08:35] [#]} (30. Kg1 h5 31. Rd1) 30... Nxf2 $1 {[%emt 0:10:40][%mdl 512]} 31. Rc1 {[%emt 0:05:54] Strongly threatening Rxc8.} (31. e4 Nxe4) 31... Rxc1 {[%emt 0:00:33]} ({Inferior is} 31... Nd3 32. Nxd3 Qf3+ 33. Kg1 Qxe3+ 34. Kg2 (34. Kh1 $2 Qxd3 35. h4 Qf3+ 36. Kh2 Re8 $19) 34... Qf3+ 35. Kg1 Qxd3 36. Rxc8 $11) (31... Nh3 $142 {( -> ...Rxc1)} 32. Rc2 {[#]} Rc6 $3 {[%mdl 512]} 33. Rxc6 Qe4+ 34. Kf1 Qh1+ 35. Ke2 Qxh2+ 36. Kf1 Qg1+ 37. Ke2 Qf2+ 38. Kd1 Qxb2) 32. Qxc1 {[%emt 0:00:01][%mdl 4096] Endgame KQN-KQN} Nh3 {[%emt 0:05:29]} 33. Qc2 {[%emt 0:01:26] Inhibits Qf2+.} Qxc2+ {[%emt 0:04:11]} 34. Nxc2 {[%emt 0:00:13] KN-KN} Ng5 {[%emt 0:00:05][%cal Bh3g5,Bg5e6,Be6c7][%mdl 32]} 35. Na3 {[%emt 0:01:44]} Kf6 {[%emt 0:00:35]} 36. Nb5 {[%emt 0:00:09]} Ne6 {[%emt 0:01:02] Inhibits Nc7.} 37. Nd6 $2 {[%emt 0:02:31]} (37. Nc3 Nc7 38. Kf2) 37... Nc7 {[%emt 0:00:57]} 38. h3 {[%emt 0:00:30]} h5 {[%emt 0:00:30]} 39. hxg4 {[%emt 0:00:39]} hxg4 {[%emt 0:00:02]} 40. e4 {[%emt 0:00:57]} dxe4 {[%emt 0:00:50]} 41. Nxe4+ {[%emt 0:00:02]} (41. Kf2 $142 Nd5 42. Nxe4+ Ke7 43. Ke2) 41... Kf5 {[%emt 0:01:48]} 42. Nd2 {[%emt 0:01:35]} b5 {[%emt 0:00:18][%cal Bb6b5,Bb5a4,Ba4a3,Ba3a2][%mdl 32]} 43. Kf2 {[%emt 0:00:15]} a4 {[%emt 0:03:09]} 44. bxa4 {[%emt 0:00:12]} bxa4 {[%emt 0:00:05]} 45. Ke3 {[%emt 0:00:32]} a3 {[%emt 0:01:00]} 46. Nb3 {[%emt 0:00:24]} Nd5+ {[%emt 0:01:02]} 47. Kd3 {[%emt 0:01:04]} Nb6 {[%emt 0:03:30]} (47... a2 $142 48. Kc4 Nf6) 48. Na1 {[%emt 0:00:23]} Ke6 {[%emt 0:00:44]} (48... a2 $142 49. Nb3 Nd5) 49. Nc2 {[%emt 0:00:38]} a2 {[%emt 0:00:15] And now ...Nd5 would win.} 50. Kc3 {[%emt 0:01:25]} Nd5+ {[%emt 0:01:21]} 51. Kb2 {[%emt 0:00:56]} Kf5 {[%emt 0:01:01]} 52. Kxa2 {[%emt 0:00:03]} Ke4 {[%emt 0:00:04]} 53. Kb3 {[%emt 0:00:23]} Kd3 {[%emt 0:00:12]} 54. Kb2 {[%emt 0:00:57]} Kc4 $2 {[%emt 0:02:36]} (54... f5 55. Ne1+ Kxd4) 55. Kc1 {[%emt 0:00:29]} f5 $2 {[%emt 0:00:44]} (55... Kc3 $19 {Threatens to win with ...f5.} 56. Kd1 Kd3) 56. Kd2 $11 {[%emt 0:00:58] The position is equal.} Ne7 {[%emt 0:02:09]} 57. Ke3 {[%emt 0:00:17]} Kc3 {[%emt 0:00:57]} 58. Ne1 {[%emt 0:00:31]} Nd5+ {[%emt 0:00:05]} 59. Kf2 {[%emt 0:00:06]} Kxd4 {[%emt 0:00:09]} 60. Nc2+ {[%emt 0:00:12]} Ke4 {[%emt 0:00:29]} 61. Ke2 $1 {[%emt 0:00:42]} Nc3+ {[%emt 0:01:38]} 62. Kf2 {[%emt 0:00:41]} Kd3 {[%emt 0:01:35]} 63. Ne1+ {[%emt 0:00:02]} Kd2 {[%emt 0:01:08]} 64. Nf3+ $1 {[%emt 0:00:15]} Kd3 {[%emt 0:01:01]} 65. Ne1+ $1 {[%emt 0:00:26]} Ke4 {[%emt 0:00:49]} 66. Nc2 {[%emt 0:00:02]} Nd1+ {[%emt 0:01:24]} 67. Ke2 {[%emt 0:00:38]} Nb2 {[%emt 0:00:38]} 68. Kf2 {[%emt 0:00:26]} Nc4 {[%emt 0:00:22]} 69. Ke2 {[%emt 0:00:38]} Ne5 {[%emt 0:00:27]} 70. Ne1 {[%emt 0:01:10]} Nd7 {[%emt 0:01:49]} 71. Nc2 {[%emt 0:00:18]} Nf6 {[%emt 0:00:14]} 72. Kf2 {[%emt 0:00:27]} Nh5 {[%emt 0:00:31]} 73. Ne1 {[%emt 0:00:36]} Kd4 {[%emt 0:01:03]} 74. Nc2+ {[%emt 0:00:34]} Kd3 {[%emt 0:00:18]} 75. Ne1+ {[%emt 0:00:06]} Kd2 {[%emt 0:02:39][%cal Oh5g3]} 76. Ng2 {[%emt 0:00:08]} Nf6 {[%emt 0:00:25]} 77. Nh4 {[%emt 0:00:12]} Ne4+ {[%emt 0:00:21]} 78. Kg2 {[%emt 0:00:09]} Nd6 {[%emt 0:00:10]} 79. Kf2 {[%emt 0:01:57]} Kd3 {[%emt 0:00:12]} 80. Ng6 {[%emt 0:00:15]} Ne4+ {[%emt 0:00:40]} 81. Kg2 {[%emt 0:00:02]} Ke3 {[%emt 0:01:54]} 82. Nh4 {[%emt 0:00:26]} Nd6 {[%emt 0:00:05]} 83. Ng6 {[%emt 0:00:32]} Nb5 {[%emt 0:00:50]} 84. Nh4 {[%emt 0:00:26]} Nd4 {[%emt 0:00:24]} 85. Ng6 {[%emt 0:00:28]} Nf3 {[%emt 0:04:01]} 86. Ne7 {[%emt 0:00:25]} Ke4 {[%emt 0:00:34]} 87. Kf2 {[%emt 0:00:21]} Ne5 {[%emt 0:00:48]} 88. Ng8 {[%emt 0:01:02]} Nd7 {[%emt 0:01:41]} 89. Ne7 {[%emt 0:00:24]} Nf6 {[%emt 0:02:32]} 90. Nc6 {[%emt 0:00:51]} Nd5 {[%emt 0:01:14]} 91. Na5 {[%emt 0:00:50]} Nb4 {[%emt 0:02:52]} 92. Nb3 {[%emt 0:00:44]} Nd3+ {[%emt 0:01:32]} 93. Ke2 {[%emt 0:00:16]} Ne5 {[%emt 0:00:29]} 94. Nd2+ {[%emt 0:00:27]} Kd4 {[%emt 0:00:08]} 95. Nb3+ {[%emt 0:00:54]} Kc4 {[%emt 0:00:37]} 96. Nd2+ {[%emt 0:00:21]} Kc3 {[%emt 0:00:01]} 97. Nb1+ {[%emt 0:00:44]} Kd4 {[%emt 0:01:18]} 98. Na3 {[%emt 0:00:21]} Ke4 {[%emt 0:01:19]} 99. Nc2 {[%emt 0:00:39]} Nc4 {[%emt 0:01:45]} 100. Kf2 {[%emt 0:00:23]} Kd3 {[%emt 0:00:21]} 101. Ne1+ {[%emt 0:00:20]} Kd2 {[%emt 0:00:37]} 102. Ng2 {[%emt 0:00:08] Prevents Ne3.} Nd6 {[%emt 0:00:27] Hoping for ...Ne4+.} 103. Nh4 {[%emt 0:00:24]} Kd3 {[%emt 0:00:30]} 104. Ng6 {[%emt 0:00:57]} Ne4+ {[%emt 0:00:36]} 105. Kg2 {[%emt 0:00:05]} Ke3 {[%emt 0:00:29]} 106. Ne7 {[%emt 0:00:15]} Nd6 {[%emt 0:00:03]} 107. Nd5+ {[%emt 0:00:17]} Ke4 {[%emt 0:00:34]} 108. Ne7 {[%emt 0:00:23]} f4 {[%emt 0:00:22]} 109. gxf4 $1 {[%emt 0:00:11]} Kxf4 {[%emt 0:00:05]} 110. Nd5+ {[%emt 0:00:20]} Kg5 {[%emt 0:01:24]} 111. Ne3 {[%emt 0:00:13]} Kf4 {[%emt 0:00:01]} 112. Nxg4 {[%emt 0:00:08]} Kxg4 {[%emt 0:00:01] White happily takes the draw.  Weighted Error Value: White=1.22/Black=0.64} 1/2-1/2